bitfinex/quotes_SOLUSD_20250217
["timestamp","ask_amount","ask_price","bid_price","bid_amount"]
[1739814319027,11.92835113,178.65,178.59,11.92835113]
[1739814319856,94.02835113,178.64,178.58,11.92835113]
[1739814321048,11.92835113,178.63,178.57,11.99135113]
[1739814321255,82.1,178.62,178.57,11.99135113]
[1739814321430,82.1,178.62,178.58,11.92835113]
[1739814321757,82.1,178.61,178.57,11.99135113]
[1739814322448,94.02835113,178.61,178.57,0.063]
[1739814322648,94.02835113,178.6,178.57,0.063]
[1739814323242,99.62765113,178.6,178.57,0.063]
[1739814323437,82.1,178.6,178.57,0.063]
[1739814323742,82.1,178.6,178.57,11.99135113]
[1739814324745,82.1,178.6,178.58,11.92835113]
[1739814324941,82.1,178.6,178.59,11.92835113]
[1739814325334,82.1,178.6,178.58,11.92835113]
[1739814325653,87.6992,178.6,178.57,0.063]
[1739814325860,99.62755113,178.6,178.57,0.063]
[1739814326063,11.92835113,178.58,178.57,0.063]
[1739814327463,17.52805113,178.58,178.57,0.063]
[1739814327862,11.92835113,178.58,178.57,0.063]
[1739814328398,11.92835113,178.6,178.57,0.063]
[1739814328541,17.52705113,178.61,178.57,0.063]
[1739814328736,11.92835113,178.6,178.57,0.063]
[1739814329252,17.52805113,178.58,178.57,0.063]
[1739814331164,11.92835113,178.59,178.57,0.063]
[1739814331346,17.52775113,178.6,178.57,0.063]
[1739814331747,17.52715113,178.61,178.57,0.063]
[1739814332558,24.2516313,178.61,178.57,0.063]
[1739814332950,18.6528313,178.58,178.57,0.063]
[1739814333966,38.6528313,178.6,178.57,0.063]
[1739814334465,18.6528313,178.59,178.57,0.063]
[1739814334766,18.6528313,178.58,178.57,0.063]
[1739814335161,24.2524313,178.59,178.57,0.063]
[1739814336469,18.6528313,178.58,178.57,0.063]
[1739814336643,24.2524313,178.59,178.57,0.063]
[1739814338751,18.6528313,178.58,178.57,0.063]
[1739814339969,24.2524313,178.59,178.57,0.063]
[1739814340674,0.03,178.61,178.57,0.063]
[1739814340876,5.6288,178.61,178.57,0.063]
[1739814341469,0.03,178.61,178.57,18.7158313]
[1739814342770,0.03,178.61,178.58,18.6528313]
[1739814343570,0.03,178.61,178.57,5.6629]
[1739814343571,0.03,178.61,178.59,18.6528313]
[1739814344774,0.03,178.61,178.58,6.337]
[1739814346166,18.6828313,178.61,178.57,0.063]
[1739814346868,0.03,178.61,178.57,0.063]
[1739814347583,0.03,178.61,178.58,18.6528313]
[1739814347883,0.03,178.61,178.59,18.6528313]
[1739814348084,0.03,178.61,178.6,18.6528313]
[1739814348859,0.03,178.61,178.6,31.8123313]
[1739814354491,0.03,178.61,178.6,45.22417983]
[1739814354789,0.03,178.65,178.61,13.41184853]
[1739814355086,0.03,178.65,178.64,18.6528313]
[1739814358494,0.03,178.65,178.63,18.6528313]
[1739814358663,0.03,178.65,178.61,18.6528313]
[1739814359295,0.03,178.65,178.62,18.6528313]
[1739814359491,0.03,178.65,178.63,18.6528313]
[1739814360001,0.03,178.65,178.62,18.6528313]
[1739814361398,0.03,178.65,178.63,18.6528313]
[1739814362202,0.03,178.65,178.64,18.6528313]
[1739814362600,0.03,178.65,178.63,18.6528313]
[1739814363472,0.03,178.65,178.62,18.6528313]
[1739814366105,82.13,178.65,178.62,18.6528313]
[1739814367288,82.13,178.65,178.63,18.6528313]
[1739814368098,82.13,178.65,178.64,18.6528313]
[1739814368411,82.13,178.65,178.63,24.2507313]
[1739814368588,82.13,178.65,178.63,18.6528313]
[1739814368984,82.13,178.65,178.6,26.2132313]
[1739814369601,82.13,178.65,178.62,18.6528313]
[1739814369813,82.13,178.65,178.63,18.6528313]
[1739814370000,82.13,178.65,178.62,18.6528313]
[1739814371793,82.13,178.65,178.63,18.6528313]
[1739814373218,82.13,178.65,178.63,24.2509313]
[1739814376010,82.13,178.65,178.64,18.6528313]
[1739814376513,0.03,178.65,178.64,18.6528313]
[1739814377684,0.03,178.65,178.64,24.2506313]
[1739814381993,0.03,178.65,178.62,18.6528313]
[1739814382292,0.03,178.65,178.61,0.063]
[1739814382524,82.1,178.64,178.61,0.063]
[1739814383193,94.03139882,178.64,178.61,0.063]
[1739814383393,82.1,178.64,178.61,0.063]
[1739814383703,82.1,178.64,178.61,5.6617]
[1739814384005,82.1,178.64,178.61,17.59309882]
[1739814384309,82.1,178.64,178.62,11.93139882]
[1739814384620,82.1,178.64,178.63,18.63553921]
[1739814384790,0.03,178.65,178.63,18.63553921]
[1739814384989,0.03,178.65,178.64,18.63553921]
[1739814385311,0.03,178.65,178.64,45.41207842]
[1739814385604,0.03,178.65,178.64,26.77653921]
[1739814386512,0.03,178.65,178.64,32.37433921]
[1739814387210,0.03,178.65,178.64,65.26112932]
[1739814387414,0.03,178.65,178.64,64.42172695]
[1739814392318,0.03,178.66,178.64,64.42172695]
[1739814392533,0.03,178.66,178.65,37.27107842]
[1739814393621,0.03,178.66,178.65,42.86857842]
[1739814399423,82.1,178.76,178.72,20.0]
[1739814399630,82.1,178.76,178.75,18.63553921]
[1739814400306,82.1,178.76,178.75,24.22993921]
[1739814402722,0.03,178.77,178.75,24.22993921]
[1739814402932,0.03,178.77,178.76,18.63553921]
[1739814404810,0.03,178.77,178.76,24.22953921]
[1739814405006,0.03,178.79,178.78,20.0]
[1739814405327,0.03,178.79,178.78,38.63553921]
[1739814406005,0.03,178.79,178.78,52.04738774]
[1739814406207,0.03,178.79,178.78,59.16380102]
[1739814406622,0.03,178.82,178.78,59.16380102]
[1739814406938,0.03,178.82,178.8,24.22833921]
[1739814412550,0.03,178.82,178.77,5.5937]
[1739814412843,0.03,178.82,178.8,18.63553921]
[1739814414328,0.03,178.82,178.8,24.22833921]
[1739814416114,0.03,178.82,178.8,25.06705397]
[1739814416322,0.03,178.82,178.81,18.63553921]
[1739814417731,0.03,178.83,178.81,32.8860221]
[1739814418038,0.03,178.83,178.82,24.22773921]
[1739814420724,0.03,178.83,178.82,18.63553921]
[1739814421131,0.03,178.83,178.79,0.063]
[1739814421331,0.03,178.83,178.8,18.63553921]
[1739814422158,0.03,178.83,178.79,24.29153921]
[1739814422358,0.03,178.83,178.81,18.63553921]
[1739814422538,0.03,178.83,178.82,18.63553921]
[1739814423542,0.03,178.83,178.81,18.63553921]
[1739814424935,0.03,178.83,178.82,18.63553921]
[1739814425974,0.0001,178.83,178.82,38.79147842]
[1739814426267,0.0001,178.83,178.82,33.56778774]
[1739814427359,0.0001,178.83,178.82,57.79552695]
[1739814427546,0.0001,178.83,178.82,58.6340326]
[1739814428060,0.0001,178.84,178.83,13.41184853]
[1739814428252,0.0001,178.84,178.83,50.68292695]
[1739814428656,0.0001,178.84,178.83,56.84752695]
[1739814428850,0.03,178.88,178.86,20.0]
[1739814429057,0.03,178.88,178.87,18.63553921]
[1739814429459,0.03,178.88,178.87,24.22613921]
[1739814434170,0.0001,178.88,178.87,37.63798774]
[1739814436179,82.1,178.97,178.91,20.0]
[1739814436387,82.1,178.97,178.96,18.63553921]
[1739814437669,82.1,178.97,178.96,24.22333921]
[1739814439079,0.03,178.99,178.96,24.22333921]
[1739814439375,5.50680725,179.03,178.97,18.63553921]
[1739814440174,18.63553921,179.02,178.96,18.63553921]
[1739814440377,18.63553921,179.01,178.95,18.63553921]
[1739814440678,100.73553921,179.0,178.94,18.63553921]
[1739814441871,18.63553921,178.98,178.91,38.63553921]
[1739814442083,82.1,178.97,178.92,18.63553921]
[1739814442285,82.1,178.97,178.93,18.63553921]
[1739814442882,82.1,178.97,178.94,18.63553921]
[1739814443057,82.1,178.97,178.96,18.63553921]
[1739814443257,100.73553921,179.01,178.95,18.63553921]
[1739814443456,106.32183921,179.01,178.95,18.63553921]
[1739814443673,18.63553921,179.0,178.94,18.63553921]
[1739814443864,18.63553921,179.0,178.95,5.5881]
[1739814444055,100.73553921,179.01,178.95,24.22363921]
[1739814444658,82.1,179.01,178.95,24.22363921]
[1739814444970,82.1,179.01,178.96,18.63553921]
[1739814445281,100.73553921,179.01,178.95,24.22363921]
[1739814446780,82.1,179.01,178.95,17.47218621]
[1739814447988,11.88408621,179.0,178.95,5.5881]
[1739814448283,93.98408621,179.01,178.95,17.47218621]
[1739814448584,99.57038621,179.01,178.95,17.47218621]
[1739814449385,99.57038621,179.01,178.95,5.5881]
[1739814449782,93.98408621,179.01,178.95,5.5881]
[1739814449986,93.98408621,179.01,178.95,17.47218621]
[1739814450660,82.1,179.01,178.96,11.88408621]
[1739814450993,11.88408621,179.03,178.96,11.88408621]
[1739814451165,11.88408621,179.03,178.97,11.88408621]
[1739814451486,0.03,179.01,178.97,11.88408621]
[1739814451783,0.03,179.01,178.98,11.88408621]
[1739814452370,0.03,179.01,178.98,5.5872]
[1739814452764,0.03,179.01,178.97,11.88408621]
[1739814452975,0.03,179.01,178.97,5.5874]
[1739814453993,0.03,179.01,178.96,17.47178621]
[1739814454774,11.88408621,178.98,178.92,11.88408621]
[1739814454969,11.88408621,178.97,178.9,100.52408621]
[1739814455174,93.98408621,178.97,178.9,106.11368621]
[1739814455379,93.98408621,178.97,178.9,94.2296]
[1739814455697,11.88408621,178.92,178.9,88.64]
[1739814456019,11.88408621,178.91,178.88,0.063]
[1739814456175,11.88408621,178.9,178.88,0.063]
[1739814456369,11.88408621,178.91,178.88,0.063]
[1739814456573,18.59099409,178.89,178.88,0.063]
[1739814457388,82.1,178.93,178.88,0.063]
[1739814457597,82.1,178.93,178.88,18.65399409]
[1739814458190,82.1,178.93,178.89,18.59099409]
[1739814458693,82.1,178.93,178.89,24.18089409]
[1739814459079,18.59099409,178.96,178.9,18.59099409]
[1739814459391,82.1,178.97,178.92,18.59099409]
[1739814459801,82.1,178.97,178.93,18.59099409]
[1739814460202,18.59099409,178.96,178.89,19.5649]
[1739814460377,18.59099409,178.96,178.9,18.59099409]
[1739814460579,18.59099409,178.96,178.89,24.18089409]
[1739814462099,18.59099409,178.98,178.92,18.59099409]
[1739814462306,18.59099409,178.99,178.93,18.59099409]
[1739814462596,100.72099409,179.01,178.95,18.59099409]
[1739814462777,0.03,179.01,178.98,18.59099409]
[1739814463288,0.03,179.01,178.97,5.5873]
[1739814463289,0.03,179.01,178.97,24.17829409]
[1739814463609,0.03,179.01,178.96,24.17869409]
[1739814466413,18.62099409,179.01,178.96,5.5877]
[1739814467316,0.03,179.01,178.96,18.59099409]
[1739814467689,0.03,179.01,178.97,18.59099409]
[1739814468899,0.03,179.01,178.96,18.59099409]
[1739814469217,18.62099409,179.01,178.95,18.59099409]
[1739814469693,18.62099409,179.01,178.95,24.17889409]
[1739814470006,0.03,179.01,178.96,18.59099409]
[1739814470201,0.03,179.01,178.97,18.59099409]
[1739814470405,0.03,179.01,178.98,18.59099409]
[1739814472021,0.03,179.01,178.99,5.5869]
[1739814472516,0.03,179.01,178.99,24.17789409]
[1739814472824,0.03,179.01,178.98,24.17809409]
[1739814473326,0.03,179.01,178.99,18.59099409]
[1739814474306,0.03,179.01,178.98,18.59099409]
[1739814474615,0.03,179.01,178.97,18.59099409]
[1739814475195,0.03,179.01,178.99,18.59099409]
[1739814475523,0.03,179.01,178.98,18.59099409]
[1739814475909,0.03,179.01,178.97,18.59099409]
[1739814476924,0.03,179.01,178.96,18.65399409]
[1739814477106,0.03,179.01,178.96,0.063]
[1739814477717,0.03,179.01,178.96,24.24179409]
[1739814478035,0.03,179.01,178.96,18.65399409]
[1739814478509,0.03,179.01,178.96,24.24179409]
[1739814478705,0.03,179.01,178.96,17.53278128]
[1739814479511,0.03,179.01,178.97,11.88198128]
[1739814479711,0.03,179.01,179.0,11.88198128]
[1739814480107,0.03,179.01,179.0,17.46848128]
[1739814480308,0.03,179.01,179.0,11.88198128]
[1739814480597,0.03,179.01,178.99,11.88198128]
[1739814480802,0.03,179.01,179.0,11.88198128]
[1739814481619,0.03,179.01,178.99,11.88198128]
[1739814482238,0.03,179.01,178.97,11.88198128]
[1739814482405,0.03,179.01,178.96,0.063]
[1739814482406,11.91198128,179.01,178.96,0.063]
[1739814482603,18.59822633,179.01,178.96,0.063]
[1739814483406,0.03,179.01,178.96,18.63122633]
[1739814484243,82.1,179.0,178.96,0.063]
[1739814484542,18.56822633,178.98,178.96,0.063]
[1739814484727,18.56822633,178.97,178.96,0.063]
[1739814485032,100.66822633,178.97,178.96,0.063]
[1739814485706,87.6875,178.97,178.96,0.063]
[1739814486061,82.1,178.97,178.96,0.063]
[1739814486214,82.1,178.97,178.96,18.63122633]
[1739814486631,87.6875,178.97,178.96,0.063]
[1739814487001,106.25572633,178.97,178.96,0.063]
[1739814488035,87.6875,178.97,178.96,0.063]
[1739814488206,82.1,178.97,178.96,0.063]
[1739814488704,5.5872,178.98,178.96,0.063]
[1739814489645,5.5868,179.0,178.96,0.063]
[1739814489840,5.6163,179.01,178.96,0.063]
[1739814490040,87.7163,179.01,178.96,0.063]
[1739814490246,82.13,179.01,178.96,0.063]
[1739814490747,82.13,179.01,178.96,18.63122633]
[1739814491952,82.13,179.01,178.97,18.56822633]
[1739814493239,82.13,179.01,178.96,24.21902633]
[1739814493649,106.28452633,179.01,178.96,0.063]
[1739814494949,100.69822633,179.01,178.96,0.063]
[1739814495451,82.13,179.01,178.96,18.63122633]
[1739814495825,82.13,179.01,178.97,5.5875]
[1739814496027,82.13,179.01,178.97,24.15572633]
[1739814496349,82.13,179.01,178.98,18.56822633]
[1739814496546,82.13,179.01,178.99,18.56822633]
[1739814497544,0.03,179.01,178.99,18.56822633]
[1739814498041,0.03,179.01,178.98,18.56822633]
[1739814500259,0.03,179.01,178.96,24.99102633]
[1739814500557,0.03,179.01,178.97,18.56822633]
[1739814501067,0.03,179.01,178.96,24.99102633]
[1739814501257,0.03,179.01,178.97,18.56822633]
[1739814501465,0.03,179.01,178.98,18.56822633]
[1739814502171,0.03,179.01,178.98,24.15532633]
[1739814502642,0.03,179.01,178.98,18.56822633]
[1739814503066,0.03,179.01,178.97,24.15562633]
[1739814503371,18.56822633,179.0,178.96,0.063]
[1739814504370,18.56822633,178.99,178.96,0.063]
[1739814504963,18.56822633,178.97,178.96,0.063]
[1739814505462,24.64045396,178.97,178.96,0.063]
[1739814505769,18.56822633,178.97,178.96,0.063]
[1739814505950,24.64045396,178.97,178.96,0.063]
[1739814506566,30.22795396,178.97,178.96,0.063]
[1739814509645,24.15572633,178.97,178.96,0.063]
[1739814511839,18.56822633,178.94,178.93,0.1056039]
[1739814513656,24.15662633,178.94,178.93,0.1056039]
[1739814518240,5.5884,178.94,178.93,0.1056039]
[1739814518657,24.15662633,178.94,178.93,0.1056039]
[1739814519978,30.22885396,178.94,178.93,0.1056039]
[1739814521677,5.5884,178.94,178.93,0.1056039]
[1739814522354,18.56822633,178.98,178.93,0.1056039]
[1739814522553,5.5869,178.99,178.93,18.67383023]
[1739814523077,24.15512633,178.99,178.93,18.67383023]
[1739814523243,5.5869,178.99,178.93,18.67383023]
[1739814523442,5.5866,179.0,178.94,18.56822633]
[1739814523848,0.03,179.01,178.96,18.56822633]
[1739814524046,0.03,179.01,178.97,18.56822633]
[1739814524266,5.6163,179.01,178.96,18.56822633]
[1739814524460,24.18452633,179.01,178.95,18.56822633]
[1739814524872,0.03,179.01,178.96,18.56822633]
[1739814525050,0.03,179.01,178.94,13.41184853]
[1739814525051,0.03,179.01,178.97,18.56822633]
[1739814525653,0.03,179.01,178.96,18.56822633]
[1739814525853,0.03,179.0,178.96,18.56822633]
[1739814527081,0.03,179.0,178.97,18.56822633]
[1739814527473,0.03,179.0,178.98,18.56822633]
[1739814527671,0.03,179.0,178.97,18.56822633]
[1739814527983,0.03,179.0,178.98,18.56822633]
[1739814528281,0.03,179.0,178.97,18.56822633]
[1739814528870,0.03,179.0,178.99,18.56822633]
[1739814529178,0.03,179.0,178.99,1.5534]
[1739814529351,0.03,179.0,178.96,20.0]
[1739814529556,0.03,179.0,178.96,38.56822633]
[1739814529972,0.03,179.0,178.97,18.56822633]
[1739814530659,0.03,179.0,178.97,24.15562633]
[1739814530856,0.03,179.0,178.98,18.56822633]
[1739814531062,0.03,179.0,178.99,18.56822633]
[1739814531780,0.03,179.0,178.99,24.86012633]
[1739814533984,0.03,179.0,178.99,30.44702633]
[1739814534190,0.03,179.0,178.99,43.85887486]
[1739814535579,0.03,179.0,178.99,24.86012633]
[1739814536161,0.03,179.0,178.99,6.2919]
[1739814536363,0.03,179.0,178.95,26.57592633]
[1739814536563,0.03,179.0,178.95,8.0077]
[1739814536955,18.56822633,178.97,178.94,88.6]
[1739814537288,18.56822633,178.96,178.94,88.6]
[1739814537472,24.15632633,178.95,178.94,88.6]
[1739814538184,24.15632633,178.95,178.93,0.1056039]
[1739814539366,18.56822633,178.96,178.93,0.1056039]
[1739814540384,5.5881,178.95,178.93,0.1056039]
[1739814540772,18.56822633,178.94,178.93,0.1056039]
[1739814541964,24.15662633,178.94,178.93,3.9e-06]
[1739814542163,30.22885396,178.94,178.93,3.9e-06]
[1739814542582,48.79708029,178.94,178.93,3.9e-06]
[1739814542777,62.20892882,178.94,178.93,3.9e-06]
[1739814542975,62.20892882,178.94,178.88,0.063]
[1739814543273,18.56822633,178.89,178.88,0.063]
[1739814543888,18.56822633,178.89,178.88,0.0001]
[1739814544188,24.15822633,178.89,178.88,0.0001]
[1739814544497,23.93822633,178.89,178.88,0.0001]
[1739814545791,40.18718447,178.89,178.79,0.063]
[1739814545995,5.5925,178.81,178.79,0.063]
[1739814546288,18.56822633,178.8,178.79,0.063]
[1739814546464,24.16072633,178.81,178.79,0.063]
[1739814546884,18.56822633,178.8,178.79,0.063]
[1739814547282,18.56822633,178.8,178.75,0.063]
[1739814547473,18.56822633,178.78,178.75,0.063]
[1739814548370,106.26132633,178.79,178.75,0.063]
[1739814548596,87.6931,178.79,178.75,18.63122633]
[1739814548899,87.6931,178.79,178.75,0.063]
[1739814549099,106.26132633,178.79,178.75,0.063]
[1739814549997,18.56822633,178.78,178.75,0.063]
[1739814550383,24.16182633,178.78,178.75,0.063]
[1739814550583,100.66822633,178.79,178.75,0.063]
[1739814550793,87.6931,178.79,178.75,0.063]
[1739814551089,106.26132633,178.79,178.75,0.063]
[1739814551400,18.56822633,178.77,178.75,0.063]
[1739814552793,18.56822633,178.78,178.75,0.063]
[1739814552996,82.1,178.79,178.75,0.063]
[1739814553297,87.6931,178.79,178.75,0.063]
[1739814553628,106.26132633,178.79,178.75,0.063]
[1739814553777,18.56822633,178.78,178.75,0.063]
[1739814554098,100.66822633,178.78,178.75,0.063]
[1739814555299,5.5937,178.77,178.75,0.063]
[1739814555877,87.6935,178.78,178.75,0.063]
[1739814556481,106.26172633,178.78,178.75,0.063]
[1739814556779,18.56822633,178.77,178.75,0.063]
[1739814557414,5.594,178.76,178.75,0.063]
[1739814557715,24.16222633,178.76,178.75,0.063]
[1739814562016,38.14742633,178.76,178.7,0.063]
[1739814562311,18.56822633,178.71,178.7,0.063]
[1739814564084,24.16382633,178.71,178.7,0.063]
[1739814572118,38.15292633,178.71,178.64,88.683]
[1739814572298,18.56822633,178.65,178.64,88.683]
[1739814572505,100.66822633,178.65,178.64,88.683]
[1739814572704,82.1,178.65,178.64,88.683]
[1739814574117,82.1,178.65,178.64,94.2808]
[1739814574307,82.1,178.65,178.64,88.683]
[1739814575530,100.66822633,178.65,178.64,88.683]
[1739814576033,82.1,178.65,178.64,88.683]
[1739814576732,106.26572633,178.65,178.64,88.683]
[1739814577044,82.1,178.65,178.64,88.683]
[1739814577837,18.56822633,178.66,178.64,88.683]
[1739814578037,24.16522633,178.67,178.64,88.683]
[1739814578410,18.56822633,178.66,178.64,88.683]
[1739814578660,18.56822633,178.65,178.64,88.683]
[1739814579246,24.16572633,178.65,178.64,0.063]
[1739814580951,5.5975,178.65,178.64,0.063]
[1739814581253,24.16572633,178.65,178.64,0.063]
[1739814590254,5.5969,178.67,178.64,0.063]
[1739814590442,18.56822633,178.66,178.64,0.063]
[1739814590752,11.92983074,178.66,178.64,0.063]
[1739814591156,17.52673074,178.67,178.64,0.063]
[1739814592259,11.92983074,178.66,178.64,0.063]
[1739814592553,5.5969,178.67,178.64,0.063]
[1739814592554,11.92983074,178.65,178.64,0.063]
[1739814594263,17.52733074,178.65,178.64,0.063]
[1739814594757,24.2435182,178.65,178.64,0.063]
[1739814595462,18.6460182,178.65,178.64,0.063]
[1739814595665,24.2433182,178.66,178.64,0.063]
[1739814595964,24.2429182,178.67,178.64,0.063]
[1739814597070,18.6460182,178.65,178.64,0.063]
[1739814597548,24.2435182,178.65,178.64,0.063]
[1739814598245,42.8895364,178.65,178.64,0.063]
[1739814598555,70.29518493,178.65,178.61,0.063]
[1739814598760,38.6460182,178.62,178.57,0.063]
[1739814598956,18.6460182,178.58,178.57,0.063]
[1739814599538,24.2457182,178.58,178.57,0.063]
[1739814601044,37.65756673,178.58,178.57,0.063]
[1739814601243,56.30358493,178.58,178.57,0.063]
[1739814601446,5.5997,178.58,178.57,0.063]
[1739814601675,24.2457182,178.58,178.57,0.063]
[1739814605057,5.5997,178.58,178.57,0.063]
[1739814605371,24.2457182,178.58,178.57,0.063]
[1739814609585,18.6460182,178.58,178.57,0.063]
[1739814609874,18.6460182,178.59,178.57,0.063]
[1739814611398,18.6460182,178.58,178.57,0.063]
[1739814611768,50.70388493,178.58,178.57,0.0001]
[1739814613281,32.05786673,178.58,178.57,0.0001]
[1739814613462,24.2457182,178.58,178.57,0.0001]
[1739814614773,18.6460182,178.58,178.57,0.0001]
[1739814615080,18.6460182,178.6,178.57,0.0001]
[1739814615286,18.6760182,178.61,178.57,0.0001]
[1739814615599,0.03,178.61,178.58,7.1461]
[1739814616170,0.03,178.61,178.59,18.6460182]
[1739814616595,0.03,178.61,178.6,18.6460182]
[1739814616793,0.03,178.61,178.6,32.05786673]
[1739814617095,18.6760182,178.7,178.61,13.41184853]
[1739814617282,18.6760182,178.7,178.64,18.6460182]
[1739814617484,0.03,178.7,178.64,18.6460182]
[1739814617690,0.03,178.7,178.65,18.6460182]
[1739814617899,18.6760182,178.7,178.64,5.5975]
[1739814618887,18.6460182,178.69,178.63,24.2441182]
[1739814619609,0.03,178.7,178.64,24.2437182]
[1739814619610,18.6760182,178.7,178.64,24.2437182]
[1739814619815,0.03,178.7,178.67,18.6460182]
[1739814620100,0.03,178.7,178.68,24.8469182]
[1739814620606,0.03,178.7,178.68,6.2009]
[1739814622489,0.03,178.7,178.68,11.7974]
[1739814622894,0.03,178.7,178.68,41.5985701]
[1739814623118,0.03,178.7,178.69,29.8011701]
[1739814623913,0.03,178.7,178.69,35.3973701]
[1739814624286,0.03,178.7,178.69,29.8011701]
[1739814626497,0.03,178.7,178.69,35.3973701]
[1739814629319,0.03,178.7,178.69,29.8011701]
[1739814629602,0.03,178.7,178.69,35.3973701]
[1739814630120,0.03,178.7,178.69,29.8011701]
[1739814631216,0.03,178.7,178.69,35.3973701]
[1739814631913,0.03,178.7,178.69,48.80921863]
[1739814632414,0.03,178.7,178.69,49.64839616]
[1739814632612,82.1,178.78,178.73,20.0]
[1739814632917,4.4,178.77,178.74,29.8011701]
[1739814633218,82.1,178.78,178.74,29.8011701]
[1739814634621,82.1,178.78,178.74,35.3957701]
[1739814635116,87.6934,178.78,178.73,49.8011701]
[1739814635416,86.95530787,178.78,178.73,49.8011701]
[1739814635611,116.75647797,178.78,178.71,118.5411701]
[1739814635813,29.8011701,178.77,178.71,88.74]
[1739814636114,5.594,178.76,178.71,88.74]
[1739814636814,35.3951701,178.76,178.71,88.74]
[1739814637006,29.8011701,178.73,178.71,88.74]
[1739814637207,29.8011701,178.72,178.71,88.74]
[1739814640825,35.3964701,178.72,178.71,88.74]
[1739814641196,29.8011701,178.72,178.71,88.74]
[1739814642316,35.3964701,178.72,178.71,88.74]
[1739814642815,24.22420078,178.72,178.71,88.74]
[1739814643325,18.62890078,178.72,178.71,88.74]
[1739814644127,18.62890078,178.72,178.69,0.063]
[1739814645418,24.22420078,178.72,178.69,0.063]
[1739814646734,18.62890078,178.72,178.69,0.063]
[1739814649105,81.36190787,178.71,178.69,0.063]
[1739814649507,18.62890078,178.7,178.69,0.063]
[1739814651527,24.22480078,178.7,178.69,0.063]
[1739814653005,18.62890078,178.72,178.69,0.063]
[1739814654410,18.62890078,178.73,178.69,0.063]
[1739814654611,5.5949,178.74,178.69,0.063]
[1739814654811,18.62890078,178.71,178.69,0.063]
[1739814655021,18.62890078,178.7,178.69,0.063]
[1739814655833,24.22480078,178.7,178.69,0.063]
[1739814657237,38.21470078,178.7,178.64,88.74]
[1739814657543,37.25780156,178.65,178.61,0.063]
[1739814657723,24.22730078,178.62,178.61,0.063]
[1739814658532,18.62890078,178.63,178.61,0.063]
[1739814658911,18.62890078,178.62,178.61,0.063]
[1739814659711,24.22730078,178.62,178.61,0.063]
[1739814661143,18.62890078,178.62,178.61,0.063]
[1739814662221,24.22730078,178.62,178.61,0.063]
[1739814663920,18.62890078,178.62,178.61,0.063]
[1739814664120,24.22730078,178.62,178.61,0.063]
[1739814664537,18.62890078,178.62,178.61,0.063]
[1739814665722,24.22730078,178.62,178.61,0.063]
[1739814668258,24.22730078,178.62,178.54,88.74]
[1739814668446,18.62890078,178.58,178.54,88.74]
[1739814669523,18.62890078,178.58,178.51,0.063]
[1739814670253,24.22860078,178.58,178.51,0.063]
[1739814672441,18.62890078,178.59,178.52,18.62890078]
[1739814672642,18.62890078,178.6,178.55,1.6263]
[1739814672955,18.62890078,178.58,178.56,6.3545]
[1739814673461,18.62890078,178.59,178.56,6.3545]
[1739814673861,18.62890078,178.6,178.56,6.3545]
[1739814674064,18.62890078,178.61,178.56,11.9546]
[1739814675163,18.62890078,178.6,178.56,6.3545]
[1739814675365,18.62890078,178.59,178.56,6.3545]
[1739814676164,18.62890078,178.58,178.55,1.6263]
[1739814676469,18.62890078,178.58,178.52,5.6015]
[1739814677842,18.62890078,178.58,178.53,13.41184853]
[1739814678165,18.62890078,178.62,178.56,18.62890078]
[1739814678667,18.62890078,178.6,178.54,18.62890078]
[1739814678869,82.1,178.59,178.54,18.62890078]